fUSD/lending_fUSD_20240426
["ID","MTS","AMOUNT","RATE_DAILY","PERIOD"]
[323648627,1714146762879,-151.232152,0.00016359,2]
[323648628,1714146762888,-151.232152,0.00016359,2]
[323648629,1714146762897,-151.232152,0.00016359,2]
[323648630,1714146762906,-151.232152,0.00016359,2]
[323648631,1714146762917,-151.232152,0.00016359,2]
[323648632,1714146762927,-151.232152,0.00016359,2]
[323648633,1714146762936,-151.232152,0.00016359,2]
[323648634,1714146762945,-151.232152,0.00016359,2]
[323648635,1714146762955,-151.232152,0.00016359,2]
[323648636,1714146762964,-151.232152,0.00016359,2]
[323648637,1714146762974,-151.232152,0.00016359,2]
[323648638,1714146762984,-271.979651,0.00016359,2]
[323648639,1714146762993,-151.232161,0.00016359,2]
[323648640,1714146763003,-271.979651,0.00016359,2]
[323648641,1714146763013,-271.979651,0.00016359,2]
[323648642,1714146763022,-271.979651,0.00016359,2]
[323648643,1714146763033,-271.979651,0.00016359,2]
[323648644,1714146763042,-271.979651,0.00016359,2]
[323648645,1714146763051,-271.979651,0.00016359,2]
[323648646,1714146763060,-151.0,0.00016359,2]
[323648647,1714146763070,-151.0,0.00016359,2]
[323648648,1714146763079,-151.0,0.00016359,2]
[323648649,1714146763087,-151.0,0.00016359,2]
[323648650,1714146763097,-151.0,0.00016359,2]
[323648651,1714146763107,-271.979651,0.00016359,2]
[323648652,1714146763116,-500.0,0.00016359,2]
[323648653,1714146763125,-500.0,0.00016359,2]
[323648654,1714146763134,-271.979651,0.00016359,2]
[323648655,1714146763144,-271.979651,0.00016359,2]
[323648656,1714146763153,-500.0,0.00016359,2]
[323648657,1714146763163,-271.979651,0.00016359,2]
[323648658,1714146763172,-151.0,0.00016359,2]
[323648659,1714146763182,-271.979651,0.00016359,2]
[323648660,1714146763191,-271.979651,0.00016359,2]
[323648661,1714146763201,-151.0,0.00016359,2]
[323648662,1714146763211,-271.979654,0.00016359,2]
[323648663,1714146763220,-500.0,0.00016359,2]
[323648664,1714146763229,-500.0,0.00016359,2]
[323648665,1714146763238,-151.0,0.00016359,2]
[323648666,1714146763248,-500.0,0.00016359,2]
[323648667,1714146763258,-151.0,0.00016359,2]
[323648668,1714146763267,-500.0,0.00016359,2]
[323648669,1714146763278,-151.0,0.00016359,2]
[323648670,1714146763288,-151.0,0.00016359,2]
[323648671,1714146763297,-151.0,0.00016359,2]
[323648672,1714146763307,-184.7697,0.00016359,2]
[323648673,1714146763316,-500.0,0.00016359,2]
[323648674,1714146763326,-500.0,0.00016359,2]
[323648675,1714146763336,-500.0,0.00016359,2]
[323648676,1714146763346,-500.0,0.00016359,2]
[323648677,1714146763357,-500.0,0.00016359,2]
[323648678,1714146763367,-500.0,0.00016359,2]
[323648679,1714146763377,-500.0,0.00016359,2]
[323648680,1714146763387,-151.0,0.00016359,2]
[323648681,1714146763396,-151.0,0.00016359,2]
[323648682,1714146763406,-203.573234,0.00016359,2]
[323648683,1714146763416,-312.379396,0.00016359,2]
[323648684,1714146763426,-312.379396,0.00016359,2]
[323648685,1714146763435,-312.379396,0.00016359,2]
[323648686,1714146763444,-312.379396,0.00016359,2]
[323648687,1714146763453,-312.379396,0.00016359,2]
[323648688,1714146763463,-312.379396,0.00016359,2]
[323648689,1714146763472,-312.379396,0.00016359,2]
[323648690,1714146763482,-312.379396,0.00016359,2]
[323648691,1714146763495,-312.379396,0.00016359,2]
[323648692,1714146763504,-312.379396,0.00016359,2]
[323648693,1714146763514,-312.379396,0.00016359,2]
[323648694,1714146763523,-312.379396,0.00016359,2]
[323648695,1714146763533,-312.379396,0.00016359,2]
[323648696,1714146763543,-312.379399,0.00016359,2]
[323648697,1714146763552,-155.307386,0.00016359,2]
[323648698,1714146763561,-155.307386,0.00016359,2]
[323648699,1714146763571,-155.307386,0.00016359,2]
[323648700,1714146763581,-155.307386,0.00016359,2]
[323648701,1714146763590,-155.307386,0.00016359,2]
[323648702,1714146763599,-155.307386,0.00016359,2]
[323648703,1714146763608,-155.307386,0.00016359,2]
[323648704,1714146763618,-155.307386,0.00016359,2]
[323648705,1714146763627,-155.307386,0.00016359,2]
[323648706,1714146763636,-155.307386,0.00016359,2]
[323648707,1714146763646,-155.307386,0.00016359,2]
[323648708,1714146763655,-155.307386,0.00016359,2]
[323648709,1714146763665,-155.307386,0.00016359,2]
[323648710,1714146763674,-155.307381,0.00016359,2]
[323648711,1714146763683,-150.7423774,0.00016369,2]
[323648712,1714146763693,-195.60661363,0.000164,2]
[323648713,1714146763702,-153.67518868,0.00016403,2]
[323648714,1714146763712,-1342.0,0.00016411,2]
[323648715,1714146763721,-388.32032274,0.00016417,2]
[323648716,1714146763731,-5015.37970179,0.00016418,2]
[323648717,1714146763740,-388.32032274,0.00016423,2]
[323648718,1714146763750,-201.31534805,0.00016433,2]
[323648719,1714146763759,-150.7423774,0.00016436,2]
[323648720,1714146763768,-2000.0,0.00016438,2]
[323648721,1714146763778,-200.0,0.00016438,2]
[323648722,1714146763787,-1000.0,0.00016438,2]
[323648723,1714146763796,-300.0,0.00016438,2]
[323648724,1714146763806,-7795.12,0.00016438,2]
[323648725,1714146763816,-152.83625942,0.00016439,2]
[323648726,1714146763825,-156.91590869,0.00016459,2]
[323648727,1714146763835,-152.0,0.00016469,22]
[323648728,1714146763845,-391.59,0.00016472,2]
[323648729,1714146763854,-500.0,0.00016473,2]
[323648730,1714146763863,-500.0,0.00016473,2]
[323648731,1714146763874,-500.0,0.00016473,2]
[323648732,1714146763883,-579.69,0.00016473,2]
[323648733,1714146763892,-12541.59,0.00016473,2]
[323648734,1714146763901,-3067.93,0.00016473,2]
[323648735,1714146763910,-532.8,0.00016473,2]
[323648736,1714146763920,-683.29,0.00016473,2]
[323648737,1714146763930,-1060.15,0.00016473,2]
[323648738,1714146763939,-4294.42,0.00016473,2]
[323648739,1714146763949,-539.52,0.00016473,2]
[323648740,1714146763958,-360.51772566,0.00016473,2]
[323648741,1714146763967,-2839.5,0.00016473,2]
[323648742,1714146763977,-594.61,0.00016473,2]
[323648743,1714146763986,-786.04,0.00016473,2]
[323648744,1714146763995,-633.46,0.00016473,2]
[323648745,1714146764005,-2454.05,0.00016473,2]
[323648746,1714146764014,-556.65,0.00016473,2]
[323648747,1714146764023,-783.76,0.00016473,2]
[323648748,1714146764034,-603.38,0.00016473,2]
[323648749,1714146764043,-1769.72,0.00016473,2]
[323648750,1714146764052,-541.56,0.00016473,2]
[323648751,1714146764061,-591.93,0.00016473,2]
[323648752,1714146764070,-545.47,0.00016473,2]
[323648753,1714146764080,-2540.34,0.00016473,2]
[323648754,1714146764090,-4729.62,0.00016473,2]
[323648755,1714146764099,-1995.34,0.00016473,2]
[323648756,1714146764109,-586.34,0.00016473,2]
[323648757,1714146764118,-2124.66,0.00016473,2]
[323648758,1714146764127,-3161.41,0.00016473,2]
[323648759,1714146764137,-1952.38,0.00016473,2]
[323648760,1714146764147,-2807.16,0.00016473,2]
[323648761,1714146764156,-638.27,0.00016473,2]
[323648762,1714146764165,-3223.34,0.00016473,2]
[323648763,1714146764175,-680.69,0.00016473,2]
[323648764,1714146764185,-2296.89,0.00016473,2]
[323648765,1714146764194,-500.0,0.00016473,2]
[323648766,1714146764203,-500.0,0.00016473,2]
[323648767,1714146764212,-2368.71,0.00016473,2]
[323648768,1714146764221,-3149.73,0.00016473,2]
[323648769,1714146764231,-7711.79,0.00016473,2]
[323648770,1714146764240,-712.4,0.00016473,2]
[323648771,1714146764249,-1361.6,0.00016473,2]
[323648772,1714146764258,-743.13,0.00016473,2]
[323648773,1714146764267,-2752.21,0.00016473,2]
[323648774,1714146764278,-1414.54,0.00016473,2]
[323648775,1714146764287,-3239.13,0.00016473,2]
[323648776,1714146764297,-770.5,0.00016473,2]
[323648777,1714146764306,-1163.36,0.00016473,2]
[323648778,1714146764315,-6880.92,0.00016473,2]
[323648779,1714146764325,-525.52,0.00016473,2]
[323648780,1714146764334,-2621.73,0.00016473,2]
[323648781,1714146764344,-500.0,0.00016473,2]
[323648782,1714146764353,-2133.22,0.00016473,2]
[323648783,1714146764362,-1077.73,0.00016473,2]
[323648784,1714146764372,-653.66,0.00016473,2]
[323648785,1714146764381,-580.16,0.00016473,2]
[323648786,1714146764391,-4821.94,0.00016473,2]
[323648787,1714146764399,-2598.62,0.00016473,2]
[323648788,1714146764409,-1060.82,0.00016473,2]
[323648789,1714146764419,-584.82,0.00016473,2]
[323648790,1714146764428,-1830.64,0.00016473,2]
[323648791,1714146764438,-500.0,0.00016473,2]
[323648792,1714146764447,-1584.6,0.00016473,2]
[323648793,1714146764456,-500.0,0.00016473,2]
[323648794,1714146764466,-1347.81,0.00016473,2]
[323648795,1714146764475,-494.81373795,0.00016473,2]
[323648796,1714146764484,-6325.77,0.00016473,2]
[323648797,1714146764495,-5879.51,0.00016473,2]
[323648798,1714146764505,-7205.06,0.00016473,2]
[323648799,1714146764513,-4293.14,0.00016473,2]
[323648800,1714146764523,-1130.16,0.00016473,2]
[323648801,1714146764536,-644.42,0.00016473,2]
[323648802,1714146764545,-4451.04,0.00016473,2]
[323648803,1714146764554,-813.86,0.00016473,2]
[323648804,1714146764563,-586.06,0.00016475,2]
[323648805,1714146764574,-551.67,0.00016475,2]
[323648806,1714146764583,-536.41,0.00016475,2]
[323648807,1714146764592,-500.02,0.00016475,2]
[323648808,1714146764601,-890.43,0.00016475,2]
[323648809,1714146764611,-899.93,0.00016475,2]
[323648810,1714146764621,-500.0,0.00016475,2]
[323648811,1714146764630,-740.2,0.00016475,2]
[323648812,1714146764639,-669.41,0.00016475,2]
[323648813,1714146764648,-714.54,0.00016475,2]
[323648814,1714146764658,-703.44,0.00016475,2]
[323648815,1714146764668,-1007.49,0.00016475,2]
[323648816,1714146764677,-673.51,0.00016475,2]
[323648817,1714146764687,-500.0,0.00016475,2]
[323648818,1714146764696,-816.79,0.00016475,2]
[323648819,1714146764705,-787.38,0.00016475,2]
[323648820,1714146764714,-976.83,0.00016475,2]
[323648821,1714146764724,-1809.25,0.00016475,2]
[323648822,1714146764733,-2201.55,0.00016475,2]
[323648823,1714146764742,-2475.02,0.00016475,2]
[323648824,1714146764751,-1021.24,0.00016475,2]
[323648825,1714146764761,-906.43,0.00016475,2]
[323648826,1714146764770,-500.0,0.00016475,2]
[323648827,1714146764780,-1734.07,0.00016475,2]
[323648828,1714146764790,-1082.39,0.00016475,2]
[323648829,1714146764799,-507.5,0.00016475,2]
[323648830,1714146764808,-500.0,0.00016475,2]
[323648831,1714146764817,-1366.4,0.00016475,2]
[323648832,1714146764826,-500.0,0.00016475,2]
[323648833,1714146764836,-1005.72,0.00016475,2]
[323648834,1714146764845,-1013.72,0.00016475,2]
[323648835,1714146764854,-988.03,0.00016475,2]
[323648836,1714146764864,-951.02,0.00016475,2]
[323648837,1714146764873,-882.88,0.00016475,2]
[323648838,1714146764882,-513.26,0.00016475,2]
[323648839,1714146764892,-1725.66,0.00016475,2]
[323648840,1714146764901,-779.309172,0.00016475,2]
[323648841,1714146764911,-779.309172,0.00016475,2]
[323648842,1714146764920,-779.309172,0.00016475,2]
[323648843,1714146764929,-779.309172,0.00016475,2]
[323648844,1714146764939,-779.309172,0.00016475,2]
[323648845,1714146764948,-779.309172,0.00016475,2]
[323648846,1714146764957,-779.309172,0.00016475,2]
[323648847,1714146764966,-500.0,0.00016475,2]
[323648848,1714146764976,-779.309172,0.00016475,2]
[323648849,1714146764985,-779.309172,0.00016475,2]
[323648850,1714146764995,-779.309172,0.00016475,2]
[323648851,1714146765004,-779.309172,0.00016475,2]
[323648852,1714146765014,-779.309172,0.00016475,2]
[323648853,1714146765024,-779.309172,0.00016475,2]
[323648854,1714146765035,-779.309178,0.00016475,2]
[323648855,1714146765044,-1527.71,0.00016475,2]
[323648856,1714146765053,-151.0,0.00016475,2]
[323648857,1714146765062,-151.0,0.00016475,2]
[323648858,1714146765071,-151.0,0.00016475,2]
[323648859,1714146765081,-151.0,0.00016475,2]
[323648860,1714146765091,-151.0,0.00016475,2]
[323648861,1714146765100,-200.60881,0.00016475,2]
[323648862,1714146765110,-682.76,0.00016475,2]
[323648863,1714146765120,-183.76882,0.00016475,2]
[323648864,1714146765235,-183.76882,0.00016475,2]
[323648865,1714146765245,-181.478534,0.00016475,2]
[323648866,1714146765255,-181.478534,0.00016475,2]
[323648867,1714146765264,-181.478534,0.00016475,2]
[323648868,1714146765273,-181.478534,0.00016475,2]
[323648869,1714146765284,-183.76882,0.00016475,2]
[323648870,1714146765294,-181.478534,0.00016475,2]
[323648871,1714146765303,-183.76882,0.00016475,2]
[323648872,1714146765313,-181.478534,0.00016475,2]
[323648873,1714146765322,-183.76882,0.00016475,2]
[323648874,1714146765332,-181.478534,0.00016475,2]
[323648875,1714146765341,-183.76882,0.00016475,2]
[323648876,1714146765350,-181.478534,0.00016475,2]
[323648877,1714146765360,-183.76882,0.00016475,2]
[323648878,1714146765369,-181.478534,0.00016475,2]
[323648879,1714146765379,-181.478534,0.00016475,2]
[323648880,1714146765388,-181.478534,0.00016475,2]
[323648881,1714146765398,-181.478534,0.00016475,2]
[323648882,1714146765407,-183.76882,0.00016475,2]
[323648883,1714146765417,-181.478534,0.00016475,2]
[323648884,1714146765427,-183.76882,0.00016475,2]
[323648885,1714146765437,-181.478526,0.00016475,2]
[323648886,1714146765446,-183.76882,0.00016475,2]
[323648887,1714146765456,-183.76882,0.00016475,2]
[323648888,1714146765466,-183.76882,0.00016475,2]
[323648889,1714146765476,-183.76882,0.00016475,2]
[323648890,1714146765485,-183.768822,0.00016475,2]
[323648891,1714146765497,-522.14,0.00016475,2]
[323648892,1714146765508,-1626.54,0.00016475,2]
[323648893,1714146765517,-511.7,0.00016475,2]
[323648894,1714146765529,-500.0,0.00016475,2]
[323648895,1714146765539,-500.0,0.00016475,2]
[323648896,1714146765549,-387.06,0.00016475,2]
[323648897,1714146765559,-1328.17,0.00016475,2]
[323648898,1714146765569,-500.0,0.00016475,2]
[323648899,1714146765580,-551.92,0.00016475,2]
[323648900,1714146765591,-2126.22,0.00016475,2]
[323648901,1714146765601,-581.23,0.00016475,2]
[323648902,1714146765611,-1925.01,0.00016475,2]
[323648903,1714146765621,-500.0,0.00016475,2]
[323648904,1714146765631,-544.69,0.00016475,2]
[323648905,1714146765641,-1631.66,0.00016475,2]
[323648906,1714146765652,-1881.98,0.00016475,2]
[323648907,1714146765661,-500.0,0.00016475,2]
[323648908,1714146765670,-597.71,0.00016475,2]
[323648909,1714146765680,-2029.94,0.00016475,2]
[323648910,1714146765689,-1848.32,0.00016475,2]
[323648911,1714146765699,-1370.68,0.00016475,2]
[323648912,1714146765709,-1912.0,0.00016475,2]
[323648913,1714146765718,-919.44,0.00016475,2]
[323648914,1714146765729,-661.25,0.00016475,2]
[323648915,1714146765739,-1171.2,0.00016475,2]
[323648916,1714146765748,-638.29,0.00016475,2]
[323648917,1714146765757,-5559.23,0.00016475,2]
[323648918,1714146765767,-2143.51,0.00016475,2]
[323648919,1714146765794,-7686.77,0.00016475,2]
[323648920,1714146765812,-2569.43,0.00016475,2]
[323648921,1714146765822,-2739.23,0.00016475,2]
[323648922,1714146765833,-1792.37,0.00016475,2]
[323648923,1714146765843,-1653.79,0.00016475,2]
[323648924,1714146765853,-625.93,0.00016475,2]
[323648925,1714146765863,-500.0,0.00016475,2]
[323648926,1714146765873,-500.0,0.00016475,2]
[323648927,1714146765883,-1471.8,0.00016475,2]
[323648928,1714146765894,-1070.1,0.00016475,2]
[323648929,1714146765904,-4037.45,0.00016475,2]
[323648930,1714146765914,-2650.97,0.00016475,2]
[323648931,1714146765924,-598.19,0.00016475,2]
[323648932,1714146765933,-500.0,0.00016475,2]
[323648933,1714146765943,-4448.95,0.00016475,2]
[323648934,1714146765953,-2695.07,0.00016475,2]
[323648935,1714146765963,-8545.82,0.00016475,2]
[323648936,1714146765972,-591.25,0.00016475,2]
[323648937,1714146765983,-2042.61,0.00016475,2]
[323648938,1714146765993,-693.98,0.00016475,2]
[323648939,1714146766003,-3854.6,0.00016475,2]
[323648940,1714146766013,-1203.03,0.00016475,2]
[323648941,1714146766024,-1971.4,0.00016475,2]
[323648942,1714146766038,-540.52,0.00016475,2]
[323648943,1714146766048,-1968.53,0.00016475,2]
[323648944,1714146766057,-1494.75,0.00016475,2]
[323648945,1714146766067,-3141.48,0.00016475,2]
[323648946,1714146766075,-2509.36,0.00016475,2]
[323648947,1714146766085,-500.92,0.00016475,2]
[323648948,1714146766094,-13276.39,0.00016475,2]
[323648949,1714146766107,-8273.37,0.00016475,2]
[323648950,1714146766118,-742.66,0.00016475,2]
[323648951,1714146766129,-1606.25,0.00016475,2]
[323648952,1714146766140,-1129.91,0.00016475,2]
[323648953,1714146766150,-500.0,0.00016475,2]
[323648954,1714146766161,-500.0,0.00016475,2]
[323648955,1714146766172,-1918.48,0.00016475,2]
[323648956,1714146766181,-2088.24,0.00016475,2]
[323648957,1714146766192,-500.0,0.00016475,2]
[323648958,1714146766202,-1027.75,0.00016475,2]
[323648959,1714146766213,-1818.45,0.00016475,2]
[323648960,1714146766224,-5084.52,0.00016475,2]
[323648961,1714146766235,-1698.98,0.00016475,2]
[323648962,1714146766246,-2638.15,0.00016475,2]
[323648963,1714146766256,-1991.01,0.00016475,2]
[323648964,1714146766265,-500.0,0.00016475,2]
[323648965,1714146766275,-4070.98,0.00016475,2]
[323648966,1714146766288,-2076.98,0.00016475,2]
[323648967,1714146766299,-1015.78,0.00016475,2]
[323648968,1714146766309,-1017.72,0.00016475,2]
[323648969,1714146766319,-644.82,0.00016475,2]
[323648970,1714146766329,-500.0,0.00016475,2]
[323648971,1714146766340,-5841.05,0.00016475,2]
[323648972,1714146766350,-700.9,0.00016475,2]
[323648973,1714146766359,-2676.49,0.00016475,2]
[323648974,1714146766369,-743.73,0.00016475,2]
[323648975,1714146766379,-1119.16,0.00016475,2]
[323648976,1714146766389,-3263.92,0.00016475,2]
[323648977,1714146766398,-739.69,0.00016475,2]
[323648978,1714146766408,-1345.69,0.00016475,2]
[323648979,1714146766417,-2402.81,0.00016475,2]
[323648980,1714146766427,-238.47677484,0.00016476,2]
[323648981,1714146766436,-558.17,0.00016476,2]
[323648982,1714146766445,-500.0,0.00016476,2]
[323648983,1714146766455,-577.08,0.00016476,2]
[323648984,1714146766464,-393.4391437,0.00016476,2]
[323648985,1714146766474,-500.0,0.00016476,2]
[323648986,1714146766483,-703.76,0.00016476,2]
[323648987,1714146766495,-723.08,0.00016476,2]
[323648988,1714146766506,-571.51,0.00016476,2]
[323648989,1714146766515,-1700.69,0.00016476,2]
[323648990,1714146766525,-597.04,0.00016476,2]
[323648991,1714146766539,-425.24700982,0.00016476,2]
[323648992,1714146766549,-980.11,0.00016476,2]
[323648993,1714146766559,-654.78,0.00016476,2]
[323648994,1714146766570,-665.45,0.00016476,2]
[323648995,1714146766581,-507.24,0.00016476,2]
[323648996,1714146766591,-500.0,0.00016476,2]
[323648997,1714146766600,-817.8,0.00016476,2]
[323648998,1714146766610,-530.95,0.00016476,2]
[323648999,1714146766619,-500.0,0.00016476,2]
[323649000,1714146766629,-542.25,0.00016476,2]
[323649001,1714146766638,-597.96,0.00016476,2]
[323649002,1714146766648,-1358.88,0.00016476,2]
[323649003,1714146766657,-619.11,0.00016476,2]
[323649004,1714146766669,-1059.13,0.00016476,2]
[323649005,1714146766679,-500.0,0.00016476,2]
[323649006,1714146766689,-621.09,0.00016476,2]
[323649007,1714146766698,-781.34,0.00016476,2]
[323649008,1714146766708,-603.94,0.00016476,2]
[323649009,1714146766717,-2203.32,0.00016476,2]
[323649010,1714146766726,-741.55,0.00016476,2]
[323649011,1714146766736,-500.0,0.00016476,2]
[323649012,1714146766745,-707.05,0.00016476,2]
[323649013,1714146766755,-1197.27,0.00016476,2]
[323649014,1714146766765,-525.11,0.00016476,2]
[323649015,1714146766776,-1151.01,0.00016476,2]
[323649016,1714146766787,-1089.37,0.00016476,2]
[323649017,1714146766797,-535.73,0.00016476,2]
[323649018,1714146766807,-1314.57,0.00016476,2]
[323649019,1714146766817,-500.0,0.00016476,2]
[323649020,1714146766829,-1247.81,0.00016476,2]
[323649021,1714146766839,-731.33,0.00016476,2]
[323649022,1714146766849,-609.72,0.00016476,2]
[323649023,1714146766860,-713.5,0.00016476,2]
[323649024,1714146766870,-577.85,0.00016476,2]
[323649025,1714146766880,-500.0,0.00016476,2]
[323649026,1714146766889,-1867.18,0.00016476,2]
[323649027,1714146766899,-314.52024122,0.00016476,2]
[323649028,1714146766909,-1355.9,0.00016476,2]
[323649029,1714146766918,-638.8,0.00016476,2]
[323649030,1714146766927,-603.07,0.00016476,2]
[323649031,1714146766937,-1301.29,0.00016476,2]
[323649032,1714146766946,-1375.84,0.00016476,2]
[323649033,1714146766955,-678.19,0.00016476,2]
[323649034,1714146766965,-500.0,0.00016476,2]
[323649035,1714146766976,-724.11,0.00016476,2]
[323649036,1714146766985,-594.9,0.00016476,2]
[323649037,1714146766995,-616.05,0.00016476,2]
[323649038,1714146767005,-500.0,0.00016476,2]
[323649039,1714146767015,-1741.91,0.00016476,2]
[323649040,1714146767025,-1642.19,0.00016476,2]
[323649041,1714146767038,-645.35,0.00016476,2]
[323649042,1714146767049,-877.55,0.00016476,2]
[323649043,1714146767058,-1878.46,0.00016476,2]
[323649044,1714146767068,-2626.11,0.00016476,2]
[323649045,1714146767077,-800.34,0.00016476,2]
[323649046,1714146767086,-154.67449997,0.00016478,2]
[323649047,1714146767096,-2349.42101106,0.000165,2]
[323649048,1714146767106,-1530.0,0.000165,4]
[323649049,1714146767115,-150.0,0.000165,2]
[323649050,1714146767126,-150.0,0.000165,2]
[323649051,1714146767137,-388.32032274,0.00016544,2]
[323649052,1714146767148,-1000.0,0.00016547,2]
[323649053,1714146767158,-195.60661363,0.00016576,2]
[323649054,1714146767167,-524.75,0.00016581,2]
[323649055,1714146767176,-467.35701048,0.00016581,2]
[323649056,1714146767187,-500.0,0.00016581,2]
[323649057,1714146767197,-500.0,0.00016581,2]
[323649058,1714146767206,-912.86,0.00016581,2]
[323649059,1714146767215,-614.45,0.00016581,2]
[323649060,1714146767224,-831.87,0.00016581,2]
[323649061,1714146767234,-1074.39,0.00016581,2]
[323649062,1714146767244,-532.82,0.00016581,2]
[323649063,1714146767254,-773.66,0.00016581,2]
[323649064,1714146767263,-838.97,0.00016581,2]
[323649065,1714146767272,-671.04,0.00016581,2]
[323649066,1714146767282,-724.04,0.00016581,2]
[323649067,1714146767292,-569.7673951,0.00016581,2]
[323649068,1714146767302,-659.6,0.00016581,2]
[323649069,1714146767312,-543.48,0.00016581,2]
[323649070,1714146767321,-605.67,0.00016581,2]
[323649071,1714146767331,-804.0,0.00016581,2]
[323649072,1714146767340,-500.0,0.00016581,2]
[323649073,1714146767350,-512.65,0.00016581,2]
[323649074,1714146767359,-500.0,0.00016581,2]
[323649075,1714146767369,-500.0,0.00016581,2]
[323649076,1714146767379,-733.06,0.00016581,2]
[323649077,1714146767388,-584.14,0.00016581,2]
[323649078,1714146767398,-500.0,0.00016581,2]
[323649079,1714146767408,-668.64,0.00016581,2]
[323649080,1714146767668,-535.33,0.00016581,2]
[323649081,1714146767689,-500.0,0.00016581,2]
[323649082,1714146767699,-549.83,0.00016581,2]
[323649083,1714146767710,-500.0,0.00016587,7]
[323649084,1714146767721,-85044.89536345,0.000166,2]
[323649085,1714146767731,-154.31732651,0.00016611,2]
[323649086,1714146767743,-153.67518868,0.00016621,2]
[323649087,1714146767754,-153.03532946,0.00016627,2]
[323649088,1714146767764,-152.0,0.00016634,23]
[323649089,1714146767775,-1000.0,0.00016655,2]
[323649090,1714146767785,-150.7423774,0.00016667,2]
[323649091,1714146767795,-777.46323385,0.00016674,2]
[323649092,1714146767805,-1010.96,0.0001668,2]
[323649093,1714146767814,-150.7423774,0.00016702,2]
[323649094,1714146767825,-2000.0,0.00016712,2]
[323649095,1714146767836,-160.79,0.00016712,2]
[323649096,1714146767847,-201.31534805,0.00016723,2]
[323649097,1714146767856,-1688.61718993,0.00016729,2]
[323649098,1714146767868,-500.0,0.00016747,2]
[323649099,1714146767878,-500.0,0.00016747,2]
[323649100,1714146767888,-500.0,0.00016747,2]
[323649101,1714146767898,-12541.59,0.00016747,2]
[323649102,1714146767909,-3067.93,0.00016747,2]
[323649103,1714146767918,-532.8,0.00016747,2]
[323649104,1714146767929,-683.29,0.00016747,2]
[323649105,1714146767939,-1060.15,0.00016747,2]
[323649106,1714146767950,-4294.42,0.00016747,2]
[323649107,1714146767960,-539.52,0.00016747,2]
[323649108,1714146767970,-2839.5,0.00016747,2]
[323649109,1714146767980,-594.61,0.00016747,2]
[323649110,1714146767990,-786.04,0.00016747,2]
[323649111,1714146768000,-633.46,0.00016747,2]
[323649112,1714146768010,-2454.05,0.00016747,2]
[323649113,1714146768020,-556.65,0.00016747,2]
[323649114,1714146768030,-783.76,0.00016747,2]
[323649115,1714146768044,-603.38,0.00016747,2]
[323649116,1714146768055,-1769.72,0.00016747,2]
[323649117,1714146768065,-541.56,0.00016747,2]
[323649118,1714146768074,-591.93,0.00016747,2]
[323649119,1714146768084,-545.47,0.00016747,2]
[323649120,1714146768095,-2540.34,0.00016747,2]
[323649121,1714146768105,-4729.62,0.00016747,2]
[323649122,1714146768116,-1995.34,0.00016747,2]
[323649123,1714146768126,-586.34,0.00016747,2]
[323649124,1714146768136,-2124.66,0.00016747,2]
[323649125,1714146768145,-3161.41,0.00016747,2]
[323649126,1714146768155,-1952.38,0.00016747,2]